fUST/lending_fUST_20250901
["ID","MTS","AMOUNT","RATE_DAILY","PERIOD"]
[382561297,1756667452691,-160.0,0.00017215,2]
[382561298,1756667452700,-232.78794292,0.00017215,2]
[382561299,1756667452711,-845.95363151,0.00017215,2]
[382561300,1756667452721,-425.75173308,0.00017215,2]
[382561301,1756667452730,-530.02580203,0.00017215,2]
[382561302,1756667452740,-160.0,0.00017215,2]
[382561303,1756667452749,-160.0,0.00017215,2]
[382561304,1756667452758,-160.0,0.00017215,2]
[382561305,1756667452768,-417.15472785,0.00017215,2]
[382561306,1756667452777,-160.0,0.00017215,2]
[382561307,1756667452786,-160.0,0.00017215,2]
[382561308,1756667452795,-217.4012883,0.00017215,2]
[382561309,1756667452806,-160.0,0.00017215,2]
[382561310,1756667452818,-160.0,0.00017215,2]
[382561311,1756667452827,-151.0,0.00017218,2]
[382561312,1756667452837,-151.0,0.00017218,2]
[382561313,1756667452846,-151.0,0.00017218,2]
[382561314,1756667452856,-480.0,0.00017242,2]
[382561315,1756667452866,-480.0,0.00017242,2]
[382561316,1756667452875,-480.0,0.00017242,2]
[382561317,1756667452884,-480.0,0.00017242,2]
[382561318,1756667452894,-480.0,0.00017242,2]
[382561319,1756667452903,-1099.8,0.00017242,2]
[382561320,1756667452912,-480.0,0.00017242,2]
[382561321,1756667452923,-480.0,0.00017242,2]
[382561322,1756667452933,-855.52,0.00017242,2]
[382561323,1756667452943,-480.0,0.00017242,2]
[382561324,1756667452952,-1241.19,0.00017242,2]
[382561325,1756667452961,-480.0,0.00017242,2]
[382561326,1756667452971,-590.93,0.00017242,2]
[382561327,1756667452980,-942.5,0.00017242,2]
[382561328,1756667452990,-480.0,0.00017242,2]
[382561329,1756667453000,-480.0,0.00017242,2]
[382561330,1756667453010,-480.0,0.00017242,2]
[382561331,1756667453019,-480.0,0.00017242,2]
[382561332,1756667453028,-480.0,0.00017242,2]
[382561333,1756667453038,-480.0,0.00017242,2]
[382561334,1756667453047,-480.0,0.00017242,2]
[382561335,1756667453057,-480.0,0.00017242,2]
[382561336,1756667453066,-480.0,0.00017242,2]
[382561337,1756667453076,-480.0,0.00017242,2]
[382561338,1756667453085,-480.0,0.00017242,2]
[382561339,1756667453094,-480.0,0.00017242,2]
[382561340,1756667453103,-1192.66,0.00017242,2]
[382561341,1756667453113,-489.67,0.00017242,2]
[382561342,1756667453123,-480.0,0.00017242,2]
[382561343,1756667453133,-1113.86,0.00017242,2]
[382561344,1756667453144,-480.0,0.00017242,2]
[382561345,1756667453154,-333.91199684,0.00017242,2]
[382561346,1756667453163,-480.0,0.00017242,2]
[382561347,1756667453173,-709.45,0.00017242,2]
[382561348,1756667453182,-579.18,0.00017242,2]
[382561349,1756667453192,-608.14,0.00017242,2]
[382561350,1756667453201,-480.0,0.00017242,2]
[382561351,1756667453210,-480.0,0.00017242,2]
[382561352,1756667453219,-480.0,0.00017242,2]
[382561353,1756667453229,-480.0,0.00017242,2]
[382561354,1756667453240,-480.0,0.00017242,2]
[382561355,1756667453249,-556.27,0.00017242,2]
[382561356,1756667453259,-480.0,0.00017242,2]
[382561357,1756667453269,-498.23,0.00017242,2]
[382561358,1756667453279,-327.95776458,0.00017242,2]
[382561359,1756667453289,-480.0,0.00017242,2]
[382561360,1756667453299,-555.06,0.00017242,2]
[382561361,1756667453310,-480.0,0.00017242,2]
[382561362,1756667453319,-480.0,0.00017242,2]
[382561363,1756667453331,-480.0,0.00017242,2]
[382561364,1756667453340,-480.0,0.00017242,2]
[382561365,1756667453350,-480.0,0.00017242,2]
[382561366,1756667453359,-480.0,0.00017242,2]
[382561367,1756667453369,-712.98,0.00017242,2]
[382561368,1756667453378,-480.0,0.00017242,2]
[382561369,1756667453387,-480.0,0.00017242,2]
[382561370,1756667453397,-480.0,0.00017242,2]
[382561371,1756667453406,-1198.53,0.00017242,2]
[382561372,1756667453416,-480.0,0.00017242,2]
[382561373,1756667453425,-1106.05,0.00017242,2]
[382561374,1756667453435,-480.0,0.00017242,2]
[382561375,1756667453444,-480.0,0.00017242,2]
[382561376,1756667453454,-480.0,0.00017242,2]
[382561377,1756667453463,-480.0,0.00017242,2]
[382561378,1756667453472,-480.0,0.00017242,2]
[382561379,1756667453482,-480.0,0.00017242,2]
[382561380,1756667453492,-583.26,0.00017242,2]
[382561381,1756667453501,-480.0,0.00017242,2]
[382561382,1756667453511,-480.0,0.00017242,2]
[382561383,1756667453520,-584.97,0.00017242,2]
[382561384,1756667453529,-480.0,0.00017242,2]
[382561385,1756667453538,-480.0,0.00017242,2]
[382561386,1756667453547,-222.837283,0.00017242,2]
[382561387,1756667453556,-179.442963,0.00017242,2]
[382561388,1756667453566,-179.442963,0.00017242,2]
[382561389,1756667453576,-179.442963,0.00017242,2]
[382561390,1756667453585,-480.0,0.00017242,2]
[382561391,1756667453594,-602.86568468,0.00017242,2]
[382561392,1756667453604,-179.442963,0.00017242,2]
[382561393,1756667453615,-151.0,0.00017242,2]
[382561394,1756667453625,-174.328887,0.00017242,2]
[382561395,1756667453636,-151.0,0.00017242,2]
[382561396,1756667453645,-151.0,0.00017242,2]
[382561397,1756667453655,-151.0,0.00017242,2]
[382561398,1756667453667,-151.0,0.00017242,2]
[382561399,1756667453676,-151.0,0.00017242,2]
[382561400,1756667453685,-1051.3,0.00017242,2]
[382561401,1756667453695,-520.18,0.00017242,2]
[382561402,1756667453705,-151.0,0.00017242,2]
[382561403,1756667453714,-480.0,0.00017242,2]
[382561404,1756667453723,-1095.71,0.00017242,2]
[382561405,1756667453732,-151.0,0.00017242,2]
[382561406,1756667453741,-377.517039,0.00017242,2]
[382561407,1756667453750,-377.517039,0.00017242,2]
[382561408,1756667453759,-480.0,0.00017242,2]
[382561409,1756667453769,-377.517039,0.00017242,2]
[382561410,1756667453780,-377.517039,0.00017242,2]
[382561411,1756667453789,-295.25533,0.00017242,2]
[382561412,1756667453799,-151.0,0.00017242,2]
[382561413,1756667453808,-480.0,0.00017242,2]
[382561414,1756667453818,-151.0,0.00017242,2]
[382561415,1756667453827,-480.0,0.00017242,2]
[382561416,1756667453836,-368.24939402,0.00017242,2]
[382561417,1756667453847,-540.64,0.00017242,2]
[382561418,1756667453856,-480.0,0.00017242,2]
[382561419,1756667453865,-520.32,0.00017242,2]
[382561420,1756667453874,-480.0,0.00017242,2]
[382561421,1756667453885,-480.0,0.00017242,2]
[382561422,1756667453894,-480.0,0.00017242,2]
[382561423,1756667453903,-480.0,0.00017242,2]
[382561424,1756667453913,-480.0,0.00017242,2]
[382561425,1756667453923,-837.29,0.00017242,2]
[382561426,1756667453932,-151.0,0.00017242,2]
[382561427,1756667453941,-480.0,0.00017242,2]
[382561428,1756667453952,-480.0,0.00017242,2]
[382561429,1756667453961,-480.0,0.00017242,2]
[382561430,1756667453970,-487.48883686,0.00017242,2]
[382561431,1756667453980,-480.0,0.00017242,2]
[382561432,1756667453989,-480.0,0.00017242,2]
[382561433,1756667454000,-151.0,0.00017242,2]
[382561434,1756667454009,-151.0,0.00017242,2]
[382561435,1756667454019,-151.0,0.00017242,2]
[382561436,1756667454028,-660.32,0.00017242,2]
[382561437,1756667454037,-151.0,0.00017242,2]
[382561438,1756667454048,-151.0,0.00017242,2]
[382561439,1756667454057,-151.0,0.00017242,2]
[382561440,1756667454067,-151.0,0.00017242,2]
[382561441,1756667454077,-480.0,0.00017242,2]
[382561442,1756667454086,-480.0,0.00017242,2]
[382561443,1756667454096,-151.0,0.00017242,2]
[382561444,1756667454106,-151.0,0.00017242,2]
[382561445,1756667454116,-151.0,0.00017242,2]
[382561446,1756667454125,-151.0,0.00017242,2]
[382561447,1756667454135,-226.096872,0.00017242,2]
[382561448,1756667454145,-480.0,0.00017242,2]
[382561449,1756667454154,-151.0,0.00017242,2]
[382561450,1756667454164,-226.096872,0.00017242,2]
[382561451,1756667454173,-182.570074,0.00017242,2]
[382561452,1756667454183,-151.0,0.00017242,2]
[382561453,1756667454193,-226.096872,0.00017242,2]
[382561454,1756667454202,-480.0,0.00017242,2]
[382561455,1756667454211,-226.096872,0.00017242,2]
[382561456,1756667454221,-151.0,0.00017242,2]
[382561457,1756667454231,-151.0,0.00017242,2]
[382561458,1756667454241,-151.0,0.00017243,2]
[382561459,1756667454251,-151.0,0.00017243,2]
[382561460,1756667454262,-151.0,0.00017243,2]
[382561461,1756667454273,-151.0,0.00017243,2]
[382561462,1756667454282,-1201.79,0.00017243,2]
[382561463,1756667454291,-844.21,0.00017243,2]
[382561464,1756667454304,-1250.07,0.00017243,2]
[382561465,1756667454313,-611.31,0.00017243,2]
[382561466,1756667454322,-615.39,0.00017243,2]
[382561467,1756667454333,-480.0,0.00017243,2]
[382561468,1756667454343,-480.0,0.00017243,2]
[382561469,1756667454353,-480.0,0.00017243,2]
[382561470,1756667454363,-151.0,0.00017243,2]
[382561471,1756667454372,-151.0,0.00017243,2]
[382561472,1756667454382,-151.0,0.00017243,2]
[382561473,1756667454391,-480.0,0.00017243,2]
[382561474,1756667454401,-794.57,0.00017243,2]
[382561475,1756667454411,-480.0,0.00017243,2]
[382561476,1756667454420,-712.01,0.00017243,2]
[382561477,1756667454429,-1010.6,0.00017243,2]
[382561478,1756667454440,-480.0,0.00017243,2]
[382561479,1756667454450,-480.0,0.00017243,2]
[382561480,1756667454459,-480.0,0.00017243,2]
[382561481,1756667454468,-896.88,0.00017243,2]
[382561482,1756667454478,-480.0,0.00017243,2]
[382561483,1756667454489,-600.98,0.00017243,2]
[382561484,1756667454499,-480.0,0.00017243,2]
[382561485,1756667454508,-881.54,0.00017243,2]
[382561486,1756667454518,-480.0,0.00017243,2]
[382561487,1756667454529,-1648.76,0.00017243,2]
[382561488,1756667454540,-480.0,0.00017243,2]
[382561489,1756667454550,-480.0,0.00017243,2]
[382561490,1756667454560,-480.0,0.00017243,2]
[382561491,1756667454569,-681.26,0.00017243,2]
[382561492,1756667454579,-480.0,0.00017243,2]
[382561493,1756667454588,-604.47,0.00017243,2]
[382561494,1756667454597,-480.0,0.00017243,2]
[382561495,1756667454608,-480.0,0.00017243,2]
[382561496,1756667454619,-646.1,0.00017243,2]
[382561497,1756667454630,-865.88,0.00017243,2]
[382561498,1756667454641,-512.09,0.00017245,2]
[382561499,1756667454651,-480.0,0.00017245,2]
[382561500,1756667454661,-480.0,0.00017245,2]
[382561501,1756667454670,-753.74,0.00017245,2]
[382561502,1756667454679,-480.0,0.00017245,2]
[382561503,1756667454688,-480.0,0.00017245,2]
[382561504,1756667454697,-480.0,0.00017245,2]
[382561505,1756667454707,-480.0,0.00017245,2]
[382561506,1756667454715,-480.0,0.00017245,2]
[382561507,1756667454725,-317.78136051,0.00017245,2]
[382561508,1756667454736,-500.0,0.00017245,2]
[382561509,1756667454746,-480.0,0.00017245,2]
[382561510,1756667454755,-480.0,0.00017245,2]
[382561511,1756667454764,-480.0,0.00017245,2]
[382561512,1756667454774,-151.0,0.00017245,2]
[382561513,1756667454784,-480.0,0.00017245,2]
[382561514,1756667454794,-193.73538634,0.00017245,2]
[382561515,1756667454803,-583.31,0.00017245,2]
[382561516,1756667454812,-480.0,0.00017245,2]
[382561517,1756667454821,-739.74,0.00017245,2]
[382561518,1756667454831,-480.0,0.00017245,2]
[382561519,1756667454840,-999.94,0.00017245,2]
[382561520,1756667454849,-480.0,0.00017245,2]
[382561521,1756667454859,-480.0,0.00017245,2]
[382561522,1756667454868,-515.35,0.00017245,2]
[382561523,1756667454877,-480.0,0.00017245,2]
[382561524,1756667454886,-480.0,0.00017245,2]
[382561525,1756667454896,-1033.61,0.00017245,2]
[382561526,1756667454905,-480.0,0.00017245,2]
[382561527,1756667454914,-496.35,0.00017245,2]
[382561528,1756667454923,-627.85,0.00017245,2]
[382561529,1756667454933,-480.0,0.00017245,2]
[382561530,1756667454942,-1298.35,0.00017245,2]
[382561531,1756667454953,-480.0,0.00017245,2]
[382561532,1756667454962,-151.0,0.00017245,2]
[382561533,1756667454971,-480.0,0.00017245,2]
[382561534,1756667454982,-188.33928,0.00017245,2]
[382561535,1756667454992,-151.0,0.00017245,2]
[382561536,1756667455002,-758.67,0.00017245,2]
[382561537,1756667455012,-536.86,0.00017245,2]
[382561538,1756667455023,-152.98149,0.00017245,2]
[382561539,1756667455033,-152.98149,0.00017245,2]
[382561540,1756667455044,-152.98149,0.00017245,2]
[382561541,1756667455053,-152.98149,0.00017245,2]
[382561542,1756667455062,-480.0,0.00017245,2]
[382561543,1756667455071,-480.0,0.00017245,2]
[382561544,1756667455081,-480.0,0.00017245,2]
[382561545,1756667455091,-151.0,0.00017245,2]
[382561546,1756667455100,-507.77,0.00017245,2]
[382561547,1756667455110,-571.55,0.00017245,2]
[382561548,1756667455120,-480.0,0.00017245,2]
[382561549,1756667455129,-151.0,0.00017245,2]
[382561550,1756667455139,-480.0,0.00017245,2]
[382561551,1756667455148,-151.0,0.00017245,2]
[382561552,1756667455157,-480.0,0.00017245,2]
[382561553,1756667455167,-608.77,0.00017245,2]
[382561554,1756667455176,-480.0,0.00017245,2]
[382561555,1756667455185,-302.59980593,0.00017245,2]
[382561556,1756667455195,-480.0,0.00017245,2]
[382561557,1756667455204,-681.56,0.00017245,2]
[382561558,1756667455213,-598.24,0.00017245,2]
[382561559,1756667455223,-480.0,0.00017245,2]
[382561560,1756667455232,-151.0,0.00017247,2]
[382561561,1756667455241,-239.35076144,0.00017247,2]
[382561562,1756667455251,-151.0,0.00017247,2]
[382561563,1756667455261,-151.0,0.00017247,2]
[382561564,1756667455270,-151.0,0.00017247,2]
[382561565,1756667455279,-2803.28260026,0.00017262,2]
[382561566,1756667455307,-151.0,0.00017242,2]
[382561567,1756667455316,-409.87402323,0.00017262,2]
[382561568,1756667455327,-825.39796,0.00017262,2]
[382561569,1756667455865,174.89283679,0.00016456,2]
[382561570,1756667455913,174.89283679,0.00016457,2]
[382561571,1756667455930,-480.0,0.00016557,2]
[382561572,1756667455940,-591.73,0.00016561,2]
[382561573,1756667455950,-480.0,0.00016694,2]
[382561574,1756667455960,-182.252935,0.00016971,2]
[382561575,1756667455970,-610.60015542,0.00017262,2]
[382561576,1756667476587,-300.0,0.00016554,2]
[382561577,1756667477172,-180.0,0.00016554,2]
[382561578,1756667477198,-500.0,0.00016555,2]
[382561579,1756667477224,-166.21293923,0.00016555,2]
[382561580,1756667481265,174.89283679,0.00016455,2]
[382561581,1756667502313,3309.0,0.00017,10]
[382561582,1756667551037,301.80560079,0.00016454,2]
[382561583,1756667578214,174.89283679,0.00016454,2]
[382561584,1756667578560,174.89283679,0.00016459,2]
[382561585,1756667583632,154.95386853,0.00016295,2]
[382561586,1756667591800,958.81759694,0.0001646,2]
[382561587,1756667629213,791.35980309,0.00015559,2]
[382561588,1756667629236,208.64019691,0.00015559,2]
[382561590,1756667654415,1016.535808,0.00013699,2]
[382561591,1756667748928,8774.83399509,0.00015556,2]
[382561592,1756667748950,10000.01,0.00015556,2]
[382561593,1756667748970,10000.01,0.00015556,2]
[382561594,1756667748990,10000.01,0.00015556,2]
[382561595,1756667749011,10000.01,0.00015556,2]
[382561596,1756667749032,10000.01,0.00015556,2]
[382561597,1756667749053,10000.01,0.00015556,2]
[382561598,1756667749074,4599.91036711,0.00015556,2]
[382561599,1756667753832,243.14375764,0.00016167,2]
[382561600,1756667767761,210.99176297,0.000165,2]
[382561601,1756667775465,4945.96411228,0.000165,2]
[382561602,1756667775488,54.03588772,0.000165,2]
[382561603,1756667791138,2033.51385415,0.000165,2]
[382561604,1756667798994,5000.0,0.000165,2]
[382561605,1756667807563,838.96539734,0.00016454,2]
[382561606,1756667822205,2073.49486079,0.000165,2]
[382561607,1756667822227,2926.50513921,0.000165,2]
[382561608,1756667844778,5000.0,0.000165,2]
[382561609,1756667862057,197.527147,0.00015554,2]
[382561610,1756667867627,1875.97771379,0.000165,2]
[382561611,1756667867650,3124.02228621,0.000165,2]
[382561612,1756667876994,1219.12678521,0.00016457,2]
[382561613,1756667877608,388.79711918,0.00016056,2]
[382561614,1756667878039,194.39855959,0.00016056,2]
[382561615,1756667890978,5000.0,0.000165,2]
[382561616,1756667913512,73.66524981,0.000165,2]
[382561617,1756667913535,4926.33475019,0.000165,2]
[382561618,1756667936179,5000.0,0.000165,2]
[382561619,1756667958605,73.67524981,0.000165,2]
[382561620,1756667958636,4926.32475019,0.000165,2]
[382561621,1756667965941,666.0,0.00015553,2]
[382561622,1756667981602,4407.68524981,0.000165,2]
[382561623,1756667981625,592.31475019,0.000165,2]
[382561624,1756668003976,5000.0,0.000165,2]
[382561625,1756668027484,4407.69524981,0.000165,2]
[382561626,1756668027508,592.30475019,0.000165,2]
[382561627,1756668034243,734.09472269,0.00016453,2]
[382561628,1756668052328,5000.0,0.000165,2]
[382561629,1756668060251,3673.61052712,0.000165,2]
[382561630,1756668060274,1326.38947288,0.000165,2]
[382561631,1756668076672,5000.0,0.000165,2]
[382561632,1756668085514,3673.62052712,0.000165,2]
[382561633,1756668085537,1326.37947288,0.000165,2]
[382561634,1756668101239,5000.0,0.000165,2]
[382561635,1756668131299,3673.63052712,0.000165,2]
[382561636,1756668131320,1326.36947288,0.000165,2]
[382561637,1756668147154,5000.0,0.000165,2]
[382561638,1756668155473,3673.64052712,0.000165,2]
[382561639,1756668155495,1326.35947288,0.000165,2]
[382561640,1756668217488,975.3014282,0.00016455,2]
[382561641,1756668250832,642.33288231,0.00016451,2]
[382561642,1756668257216,2779.2882741,0.00015676,2]
[382561647,1756668285779,453.02285712,0.00016178,2]
[382561648,1756668287695,1812.09142848,0.00016361,2]
[382561651,1756668337659,2011.61365691,0.0001555,2]
[382561652,1756668337689,2022.66158019,0.0001555,2]
[382561657,1756668471654,562.04127203,0.0001645,2]
[382561658,1756668484426,7415.30714778,0.00015552,2]
[382561659,1756668484449,2949.99718862,0.00015552,2]
[382561661,1756668489510,277.0883396,7.775e-05,2]
[382561673,1756668558245,780.24114256,0.00016454,2]
[382561691,1756668632635,-151.7722418,0.00016545,2]
[382561692,1756668632645,-243.39,0.00016546,3]
[382561693,1756668632654,-730.18,0.00016546,3]
[382561695,1756668632664,-938.94,0.00016547,2]
[382561697,1756668632674,-480.0,0.00016547,2]
[382561699,1756668632683,-217.87669806,0.00016547,2]
[382561700,1756668632695,-262.12330194,0.00016547,2]
[382561701,1756668632705,-680.99,0.00016547,2]
[382561702,1756668632714,-680.87699631,0.00016548,2]
[382561703,1756668632727,-519.12300369,0.00016548,2]
[382561704,1756668632737,-300.0,0.00016548,2]
[382561705,1756668632746,-300.0,0.00016548,2]
[382561706,1756668632756,-1200.0,0.00016548,2]
[382561707,1756668632766,-300.0,0.00016548,2]
[382561708,1756668632775,-480.0,0.00016549,2]
[382561709,1756668632784,-480.0,0.00016549,2]
[382561710,1756668632793,-480.0,0.00016549,2]
[382561711,1756668632802,-972.71,0.00016549,2]
[382561712,1756668632812,-1144.71,0.00016549,2]
[382561713,1756668632821,-1307.45,0.0001655,2]
[382561714,1756668632830,-480.0,0.0001655,2]
[382561715,1756668632840,-480.0,0.0001655,2]
[382561716,1756668632849,-655.13,0.0001655,2]
[382561717,1756668632859,-480.0,0.0001655,2]
[382561718,1756668632868,-480.0,0.0001655,2]
[382561719,1756668632878,-480.0,0.0001655,2]
[382561720,1756668632887,-489.55,0.0001655,2]
[382561721,1756668632898,-480.0,0.0001655,2]
[382561722,1756668632915,-480.0,0.0001655,2]
[382561723,1756668632926,-529.24,0.0001655,2]
[382561724,1756668632937,-480.0,0.0001655,2]
[382561725,1756668632947,-1223.96,0.0001655,2]
[382561726,1756668632956,-498.26,0.0001655,2]
[382561727,1756668633156,-1246.87,0.0001655,2]
[382561728,1756668633171,-766.66,0.0001655,2]
[382561729,1756668633181,-1656.67,0.0001655,2]
[382561730,1756668633190,-579.19,0.0001655,2]
[382561731,1756668633200,-718.94,0.0001655,2]
[382561732,1756668633210,-480.0,0.0001655,2]
[382561733,1756668633219,-175.59264645,0.0001655,2]
[382561734,1756668633242,-304.40735355,0.0001655,2]
[382561735,1756668633252,-480.0,0.0001655,2]
[382561736,1756668633261,-480.0,0.0001655,2]
[382561737,1756668633271,-570.0,0.0001655,2]
[382561738,1756668633280,-885.86,0.0001655,2]
[382561739,1756668633290,-500.0,0.0001655,2]
[382561740,1756668633300,-480.0,0.00016551,2]
[382561741,1756668633309,-500.93,0.00016551,2]
[382561742,1756668633319,-480.0,0.00016551,2]
[382561743,1756668633328,-1436.63,0.00016551,2]
[382561744,1756668633338,-696.52,0.00016551,2]
[382561745,1756668633348,-480.0,0.00016551,2]
[382561746,1756668633357,-776.72,0.00016551,2]
[382561747,1756668633366,-1010.69,0.00016551,2]
[382561748,1756668633375,-1074.52,0.00016551,2]
[382561749,1756668633385,-792.24,0.00016551,2]
[382561750,1756668633395,-480.0,0.00016551,2]
[382561751,1756668633405,-492.54,0.00016551,2]
[382561752,1756668633414,-480.0,0.00016551,2]
[382561753,1756668633424,-480.0,0.00016551,2]
[382561754,1756668633433,-572.1,0.00016551,2]
[382561755,1756668633443,-713.66,0.00016551,2]
[382561756,1756668633452,-480.0,0.00016551,2]
[382561757,1756668633462,-486.9,0.00016551,2]
[382561758,1756668633472,-963.82,0.00016551,2]
[382561759,1756668633482,-480.0,0.00016551,2]
[382561760,1756668633491,-539.17,0.00016551,2]
[382561761,1756668633501,-652.61,0.00016551,2]
[382561762,1756668633510,-709.7,0.00016551,2]
[382561763,1756668633519,-480.0,0.00016551,2]
[382561764,1756668633530,-757.78,0.00016551,2]
[382561765,1756668633539,-939.29,0.00016551,2]
[382561766,1756668633548,-480.0,0.00016551,2]
[382561767,1756668633557,-480.0,0.00016551,2]
[382561768,1756668633568,-480.0,0.00016551,2]
[382561769,1756668633577,-768.3,0.00016551,2]
[382561770,1756668633586,-480.0,0.00016551,2]
[382561771,1756668633596,-480.0,0.00016551,2]
[382561772,1756668633606,-480.0,0.00016551,2]
[382561773,1756668633615,-480.0,0.00016551,2]
[382561774,1756668633625,-1094.91,0.00016551,2]
[382561775,1756668633634,-904.12,0.00016551,2]
[382561776,1756668633644,-480.0,0.00016551,2]
[382561777,1756668633654,-838.08,0.00016551,2]
[382561778,1756668633664,-480.0,0.00016551,2]
[382561779,1756668633674,-516.71,0.00016551,2]
[382561780,1756668633684,-882.39,0.00016551,2]
[382561781,1756668633695,-480.0,0.00016551,2]
[382561782,1756668633704,-480.0,0.00016551,2]
[382561783,1756668633714,-664.75,0.00016551,2]
[382561784,1756668633724,-578.19,0.00016551,2]
[382561785,1756668633733,-480.0,0.00016551,2]
[382561786,1756668633743,-480.0,0.00016551,2]
[382561787,1756668633752,-738.88,0.00016551,2]
[382561788,1756668633762,-588.9,0.00016551,2]
[382561789,1756668633772,-480.0,0.00016551,2]
[382561790,1756668633781,-480.0,0.00016551,2]
[382561791,1756668633791,-1035.29,0.00016551,2]
[382561792,1756668633802,-480.0,0.00016551,2]
[382561793,1756668633811,-886.47,0.00016551,2]
[382561794,1756668633821,-974.49,0.00016551,2]
[382561795,1756668633830,-480.0,0.00016551,2]
[382561796,1756668633839,-885.34,0.00016551,2]
[382561797,1756668633848,-151.66680255,0.00016551,2]
[382561798,1756668633858,-500.0,0.00016553,2]
[382561799,1756668633867,-480.0,0.00016553,2]
[382561800,1756668633877,-480.0,0.00016553,2]
[382561801,1756668633886,-278.75539628,0.00016553,2]
[382561802,1756668633896,-535.29,0.00016554,2]
[382561803,1756668633909,-480.0,0.00016554,2]
[382561804,1756668633918,-617.63,0.00016554,2]
[382561805,1756668633927,-748.31,0.00016554,2]
[382561806,1756668633937,-482.94,0.00016554,2]
[382561807,1756668633947,-480.0,0.00016554,2]
[382561808,1756668633958,-1327.68,0.00016554,2]
[382561809,1756668633967,-480.0,0.00016554,2]
[382561810,1756668633976,-480.0,0.00016554,2]
[382561811,1756668633987,-480.0,0.00016554,2]
[382561812,1756668633997,-480.0,0.00016554,2]
[382561813,1756668634006,-480.0,0.00016554,2]
[382561814,1756668634015,-480.0,0.00016554,2]
[382561815,1756668634027,-1238.62,0.00016554,2]
[382561816,1756668634037,-480.0,0.00016554,2]
[382561817,1756668634047,-1023.82,0.00016554,2]
[382561818,1756668634056,-480.0,0.00016554,2]
[382561819,1756668634066,-480.0,0.00016554,2]
[382561820,1756668634075,-110.85080625,0.00016554,2]
[382561822,1756668638523,-480.0,0.00016549,2]
[382561823,1756668638533,-500.0,0.0001655,2]
[382561825,1756668638543,-294.59705833,0.0001655,2]
[382561827,1756668638552,-259.69771096,0.0001655,2]
[382561829,1756668638561,-640.496275,0.0001655,2]
[382561832,1756668638571,-500.0,0.0001655,2]
[382561834,1756668638580,-500.0,0.0001655,2]
[382561836,1756668638589,-153.28130736,0.0001655,2]
[382561838,1756668638599,-500.0,0.0001655,2]
[382561840,1756668638608,-637.29505754,0.0001655,2]
[382561842,1756668638617,-500.0,0.0001655,2]
[382561844,1756668638626,-500.0,0.0001655,2]
[382561846,1756668638635,-500.0,0.0001655,2]
[382561848,1756668638645,-500.0,0.0001655,2]
[382561850,1756668638654,-500.0,0.0001655,2]
[382561852,1756668638664,-500.0,0.0001655,2]
[382561854,1756668638673,-500.0,0.0001655,2]
[382561856,1756668638682,-500.0,0.0001655,2]
[382561858,1756668638691,-500.0,0.0001655,2]